[Event "Chessable Masters - Torneo preliminare"]
[White "Salem, A.R. Saleh"]
[Black "Vaibhav, Suri"]
[WhiteFideId "9301348"]
[BlackFideId "5045185"]
[WhiteElo "2654"]
[BlackElo "2543"]
[Result "1-0"]
[Round "4"]
[TimeControl "600+2"]
[Date "2023.03.13"]
[WhiteClock "0:00:07"]
[BlackClock "0:01:25"]

1. d4 {[%clk 0:09:48]}  Nf6 {[%clk 0:10:00]} 2. c4 {[%clk 0:09:49]}  e6 {[%clk 0:10:02]} 3. Nf3 {[%clk 0:09:51]}  d5 {[%clk 0:10:03]} 4. g3 {[%clk 0:09:53]}  dxc4 {[%clk 0:10:02]} 5. Bg2 {[%clk 0:09:53]}  c6 {[%clk 0:10:04]} 6. Ne5 {[%clk 0:09:43]}  Bb4+ {[%clk 0:10:04]} 7. Nc3 {[%clk 0:09:44]}  Nd5 {[%clk 0:10:02]} 8. Bd2 {[%clk 0:09:45]}  b5 {[%clk 0:10:01]} 9. a4 {[%clk 0:09:43]}  Bb7 {[%clk 0:09:42]} 10. O-O {[%clk 0:09:32]}  Bxc3 {[%clk 0:09:32]} 11. bxc3 {[%clk 0:09:31]}  Nd7 {[%clk 0:09:32]} 12. e4 {[%clk 0:08:32]}  N5f6 {[%clk 0:09:00]} 13. Ng4 {[%clk 0:08:33]}  O-O {[%clk 0:08:28]} 14. Bg5 {[%clk 0:08:25]}  Qc7 {[%clk 0:08:18]} 15. Nxf6+ {[%clk 0:08:01]}  Nxf6 {[%clk 0:08:18]} 16. Bxf6 {[%clk 0:08:02]}  gxf6 {[%clk 0:08:20]} 17. Qh5 {[%clk 0:07:50]}  c5 {[%clk 0:05:46]} 18. axb5 {[%clk 0:05:59]}  cxd4 {[%clk 0:05:45]} 19. cxd4 {[%clk 0:06:01]}  Rfd8 {[%clk 0:05:47]} 20. Qc5 {[%clk 0:06:02]}  Qb6 {[%clk 0:05:36]} 21. Rfd1 {[%clk 0:03:48]}  Rac8 {[%clk 0:04:24]} 22. Qe7 {[%clk 0:01:06]}  c3 {[%clk 0:03:25]} 23. Qxf6 {[%clk 0:01:06]}  c2 {[%clk 0:03:21]} 24. Qg5+ {[%clk 0:01:00]}  Kf8 {[%clk 0:03:15]} 25. Qh6+ {[%clk 0:01:00]}  Ke8 {[%clk 0:03:10]} 26. Rdc1 {[%clk 0:00:52]}  Rxd4 {[%clk 0:03:07]} 27. Bf3 {[%clk 0:00:35]}  Rd3 {[%clk 0:02:20]} 28. Be2 {[%clk 0:00:26]}  Rd7 {[%clk 0:02:16]} 29. Qxh7 {[%clk 0:00:22]}  Rd2 {[%clk 0:01:53]} 30. Qg8+ {[%clk 0:00:22]}  Kd7 {[%clk 0:01:47]} 31. Qxf7+ {[%clk 0:00:23]}  Kd8 {[%clk 0:01:47]} 32. Qf6+ {[%clk 0:00:14]}  Kd7 {[%clk 0:01:45]} 33. Qg7+ {[%clk 0:00:15]}  Kd6 {[%clk 0:01:43]} 34. e5+ {[%clk 0:00:10]}  Kc5 {[%clk 0:01:37]} 35. Qe7+ {[%clk 0:00:08]}  Kd5 {[%clk 0:01:25]} 36. Qd7+ {[%clk 0:00:07]}  Kxe5 {[%clk 0:01:24]} 37. Qxd2 {[%clk 0:00:08]}  Rf8 {[%clk 0:01:25]} 38. Qe3+ {[%clk 0:00:07]} 1-0


[Site "Internet"]

[Event "Chessable Masters - Torneo preliminare"]
[White "Kamsky, Gata"]
[Black "Bortnyk, Olexandr"]
[WhiteFideId "2000024"]
[BlackFideId "14120828"]
[WhiteElo "2630"]
[BlackElo "2643"]
[Result "1/2-1/2"]
[Round "4"]
[TimeControl "600+2"]
[Date "2023.03.13"]
[WhiteClock "0:00:50"]
[BlackClock "0:00:22"]

1. d4 {[%clk 0:09:59]}  d6 {[%clk 0:09:39]} 2. Nf3 {[%clk 0:09:55]}  Nf6 {[%clk 0:09:39]} 3. c4 {[%clk 0:09:52]}  g6 {[%clk 0:09:38]} 4. Nc3 {[%clk 0:09:52]}  Bg7 {[%clk 0:09:40]} 5. Bg5 {[%clk 0:09:52]}  Nbd7 {[%clk 0:09:26]} 6. e3 {[%clk 0:09:51]}  O-O {[%clk 0:08:46]} 7. Be2 {[%clk 0:09:48]}  c6 {[%clk 0:07:51]} 8. O-O {[%clk 0:09:46]}  Qc7 {[%clk 0:07:41]} 9. b4 {[%clk 0:09:43]}  e5 {[%clk 0:07:37]} 10. Rc1 {[%clk 0:09:25]}  Re8 {[%clk 0:07:33]} 11. Bh4 {[%clk 0:09:15]}  a5 {[%clk 0:07:15]} 12. b5 {[%clk 0:09:13]}  a4 {[%clk 0:07:17]} 13. a3 {[%clk 0:06:37]}  Qa5 {[%clk 0:06:20]} 14. h3 {[%clk 0:05:50]}  exd4 {[%clk 0:04:00]} 15. Nxd4 {[%clk 0:05:45]}  Ne5 {[%clk 0:03:24]} 16. bxc6 {[%clk 0:04:57]}  bxc6 {[%clk 0:03:22]} 17. Bg3 {[%clk 0:03:44]}  Bb7 {[%clk 0:03:02]} 18. Qc2 {[%clk 0:03:38]}  Nfd7 {[%clk 0:02:34]} 19. Rfd1 {[%clk 0:03:28]}  Nc5 {[%clk 0:02:32]} 20. Rb1 {[%clk 0:03:27]}  Re7 {[%clk 0:01:36]} 21. Ne4 {[%clk 0:02:50]}  Nxe4 {[%clk 0:01:29]} 22. Qxe4 {[%clk 0:02:51]}  Qc3 {[%clk 0:01:15]} 23. Qc2 {[%clk 0:02:04]}  Qxa3 {[%clk 0:01:13]} 24. Bh4 {[%clk 0:01:09]}  Rc7 {[%clk 0:01:07]} 25. Ra1 {[%clk 0:01:07]}  Qb4 {[%clk 0:01:07]} 26. Rdb1 {[%clk 0:00:58]}  Qa5 {[%clk 0:01:09]} 27. Ra3 {[%clk 0:00:59]}  c5 {[%clk 0:01:03]} 28. Nb5 {[%clk 0:00:57]}  Rd7 {[%clk 0:00:54]} 29. Rba1 {[%clk 0:00:57]}  Qb4 {[%clk 0:00:49]} 30. Rb1 {[%clk 0:00:50]}  Qa5 {[%clk 0:00:38]} 31. Rba1 {[%clk 0:00:50]}  Qb4 {[%clk 0:00:22]} 32. Rb1 {[%clk 0:00:50]}  Qa5 {[%clk 0:00:22]} 1/2-1/2


[Site "Internet"]

[Event "Chessable Masters - Torneo preliminare"]
[White "Sadhwani, Raunak"]
[Black "Antipov, Mikhail Al."]
[WhiteFideId "35093487"]
[BlackFideId "4107012"]
[WhiteElo "2550"]
[BlackElo "2593"]
[Result "0-1"]
[Round "4"]
[TimeControl "600+2"]
[Date "2023.03.13"]
[WhiteClock "0:00:07"]
[BlackClock "0:03:13"]

1. d4 {[%clk 0:10:01]}  Nf6 {[%clk 0:10:00]} 2. Nc3 {[%clk 0:10:02]}  d5 {[%clk 0:10:00]} 3. Bf4 {[%clk 0:10:02]}  g6 {[%clk 0:09:55]} 4. e3 {[%clk 0:10:02]}  Nh5 {[%clk 0:09:54]} 5. Bg5 {[%clk 0:09:46]}  f6 {[%clk 0:09:34]} 6. Bh4 {[%clk 0:09:44]}  c6 {[%clk 0:09:34]} 7. e4 {[%clk 0:09:10]}  Bh6 {[%clk 0:09:30]} 8. Bg3 {[%clk 0:07:46]}  Qb6 {[%clk 0:08:21]} 9. Rb1 {[%clk 0:07:26]}  dxe4 {[%clk 0:08:19]} 10. Nxe4 {[%clk 0:07:27]}  Bf5 {[%clk 0:08:19]} 11. Nc3 {[%clk 0:07:02]}  Na6 {[%clk 0:08:19]} 12. Bc4 {[%clk 0:05:57]}  e5 {[%clk 0:07:10]} 13. Nf3 {[%clk 0:05:10]}  exd4 {[%clk 0:07:07]} 14. Qe2+ {[%clk 0:03:56]}  Kd7 {[%clk 0:06:36]} 15. Nxd4 {[%clk 0:01:32]}  Rae8 {[%clk 0:06:09]} 16. Nxf5 {[%clk 0:01:25]}  Rxe2+ {[%clk 0:06:02]} 17. Bxe2 {[%clk 0:01:27]}  Nxg3 {[%clk 0:05:44]} 18. hxg3 {[%clk 0:01:27]}  Bf8 {[%clk 0:05:34]} 19. Nh4 {[%clk 0:01:20]}  Bg7 {[%clk 0:04:56]} 20. O-O {[%clk 0:01:12]}  f5 {[%clk 0:04:47]} 21. Bc4 {[%clk 0:01:01]}  Re8 {[%clk 0:04:34]} 22. Nf3 {[%clk 0:01:00]}  Qc5 {[%clk 0:04:22]} 23. Rfd1+ {[%clk 0:00:41]}  Kc7 {[%clk 0:04:21]} 24. Bxa6 {[%clk 0:00:24]}  bxa6 {[%clk 0:04:23]} 25. Rd3 {[%clk 0:00:26]}  Rd8 {[%clk 0:04:09]} 26. Re3 {[%clk 0:00:21]}  Qc4 {[%clk 0:03:34]} 27. a3 {[%clk 0:00:20]}  Bxc3 {[%clk 0:03:23]} 28. Rxc3 {[%clk 0:00:22]}  Qa2 {[%clk 0:03:24]} 29. Re1 {[%clk 0:00:10]}  Qxb2 {[%clk 0:03:24]} 30. Re7+ {[%clk 0:00:06]}  Rd7 {[%clk 0:03:23]} 31. Ree3 {[%clk 0:00:06]}  Rd1+ {[%clk 0:03:17]} 32. Kh2 {[%clk 0:00:07]}  Qa1 {[%clk 0:03:13]} 0-1


[Site "Internet"]

[Event "Chessable Masters - Torneo preliminare"]
[White "Drozdowski, Kacper"]
[Black "Dubov, Daniil"]
[WhiteFideId "1136720"]
[BlackFideId "24126055"]
[WhiteElo "2472"]
[BlackElo "2727"]
[Result "0-1"]
[Round "4"]
[TimeControl "600+2"]
[Date "2023.03.13"]
[WhiteClock "0:00:57"]
[BlackClock "0:05:52"]

1. e4 {[%clk 0:10:01]}  c5 {[%clk 0:09:56]} 2. Nf3 {[%clk 0:10:01]}  e6 {[%clk 0:09:58]} 3. d4 {[%clk 0:10:02]}  cxd4 {[%clk 0:10:00]} 4. Nxd4 {[%clk 0:10:03]}  Nf6 {[%clk 0:10:00]} 5. Nc3 {[%clk 0:10:03]}  Nc6 {[%clk 0:10:02]} 6. Nxc6 {[%clk 0:10:02]}  bxc6 {[%clk 0:10:03]} 7. e5 {[%clk 0:10:03]}  Nd5 {[%clk 0:10:03]} 8. Ne4 {[%clk 0:10:04]}  Qc7 {[%clk 0:10:01]} 9. f4 {[%clk 0:10:04]}  Qb6 {[%clk 0:10:02]} 10. c4 {[%clk 0:10:04]}  Ne3 {[%clk 0:10:01]} 11. Qd3 {[%clk 0:09:56]}  Bb4+ {[%clk 0:09:56]} 12. Bd2 {[%clk 0:09:48]}  Ba6 {[%clk 0:09:53]} 13. Rc1 {[%clk 0:08:42]}  Bxc4 {[%clk 0:09:41]} 14. Rxc4 {[%clk 0:08:12]}  Nxc4 {[%clk 0:09:41]} 15. Qxc4 {[%clk 0:08:11]}  Bxd2+ {[%clk 0:09:42]} 16. Nxd2 {[%clk 0:08:08]}  Qxb2 {[%clk 0:09:42]} 17. Bd3 {[%clk 0:07:48]}  O-O {[%clk 0:09:27]} 18. Ke2 {[%clk 0:07:40]}  Rab8 {[%clk 0:09:24]} 19. Rb1 {[%clk 0:07:15]}  Qa3 {[%clk 0:09:25]} 20. Qe4 {[%clk 0:07:15]}  g6 {[%clk 0:09:22]} 21. Rxb8 {[%clk 0:06:54]}  Rxb8 {[%clk 0:09:22]} 22. Qd4 {[%clk 0:06:55]}  Qxa2 {[%clk 0:08:16]} 23. Qxd7 {[%clk 0:06:54]}  Qd5 {[%clk 0:08:12]} 24. Qxd5 {[%clk 0:04:15]}  exd5 {[%clk 0:08:10]} 25. Bc2 {[%clk 0:04:05]}  Rb4 {[%clk 0:08:06]} 26. g3 {[%clk 0:04:01]}  a5 {[%clk 0:08:05]} 27. Nb1 {[%clk 0:03:27]}  a4 {[%clk 0:07:39]} 28. Kd2 {[%clk 0:03:26]}  c5 {[%clk 0:07:28]} 29. Kc3 {[%clk 0:02:53]}  h5 {[%clk 0:06:52]} 30. h4 {[%clk 0:02:50]}  Kf8 {[%clk 0:06:51]} 31. Nd2 {[%clk 0:01:42]}  Ke7 {[%clk 0:06:41]} 32. Nb1 {[%clk 0:01:17]}  Ke6 {[%clk 0:06:32]} 33. Na3 {[%clk 0:01:18]}  d4+ {[%clk 0:06:22]} 34. Kd2 {[%clk 0:01:09]}  Kd5 {[%clk 0:06:10]} 35. f5 {[%clk 0:00:57]}  gxf5 {[%clk 0:06:02]} 36. Bxf5 {[%clk 0:00:59]}  Rb3 {[%clk 0:05:53]} 37. Nc2 {[%clk 0:00:57]}  Rxg3 {[%clk 0:05:52]} 0-1


[Site "Internet"]

[Event "Chessable Masters - Torneo preliminare"]
[White "Keymer, Vincent"]
[Black "Chigaev, Maksim"]
[WhiteFideId "12940690"]
[BlackFideId "4108116"]
[WhiteElo "2630"]
[BlackElo "2568"]
[Result "1/2-1/2"]
[Round "4"]
[TimeControl "600+2"]
[Date "2023.03.13"]
[WhiteClock "0:00:14"]
[BlackClock "0:00:44"]

1. Nf3 {[%clk 0:10:01]}  Nf6 {[%clk 0:10:01]} 2. c4 {[%clk 0:10:02]}  g6 {[%clk 0:10:02]} 3. Nc3 {[%clk 0:10:01]}  Bg7 {[%clk 0:10:03]} 4. g3 {[%clk 0:10:02]}  O-O {[%clk 0:10:01]} 5. Bg2 {[%clk 0:10:03]}  c5 {[%clk 0:10:02]} 6. d4 {[%clk 0:10:03]}  d6 {[%clk 0:10:04]} 7. O-O {[%clk 0:10:00]}  Nc6 {[%clk 0:10:04]} 8. dxc5 {[%clk 0:10:01]}  dxc5 {[%clk 0:10:06]} 9. Be3 {[%clk 0:10:02]}  b6 {[%clk 0:09:49]} 10. Ne5 {[%clk 0:09:55]}  Nxe5 {[%clk 0:09:50]} 11. Bxa8 {[%clk 0:09:56]}  Nxc4 {[%clk 0:09:52]} 12. Bc1 {[%clk 0:09:50]}  Bf5 {[%clk 0:09:53]} 13. Bf3 {[%clk 0:09:37]}  Qxd1 {[%clk 0:09:47]} 14. Nxd1 {[%clk 0:08:26]}  h5 {[%clk 0:08:13]} 15. Nc3 {[%clk 0:06:12]}  Ng4 {[%clk 0:08:00]} 16. Bd5 {[%clk 0:05:45]}  Nd6 {[%clk 0:07:08]} 17. Bg5 {[%clk 0:05:32]}  Re8 {[%clk 0:06:34]} 18. Rad1 {[%clk 0:05:23]}  Nf6 {[%clk 0:06:11]} 19. Bg2 {[%clk 0:05:11]}  Kf8 {[%clk 0:05:18]} 20. b3 {[%clk 0:04:37]}  Rc8 {[%clk 0:04:47]} 21. Bf4 {[%clk 0:04:17]}  Nfe8 {[%clk 0:04:38]} 22. Nd5 {[%clk 0:04:15]}  Nb5 {[%clk 0:04:38]} 23. Bg5 {[%clk 0:04:11]}  Nf6 {[%clk 0:03:55]} 24. Nxf6 {[%clk 0:03:59]}  Bxf6 {[%clk 0:03:57]} 25. Bxf6 {[%clk 0:03:51]}  exf6 {[%clk 0:03:59]} 26. Rd2 {[%clk 0:03:53]}  Ke7 {[%clk 0:03:59]} 27. Rc1 {[%clk 0:03:48]}  a5 {[%clk 0:03:38]} 28. e3 {[%clk 0:03:27]}  Be6 {[%clk 0:03:05]} 29. Bf1 {[%clk 0:03:03]}  Na3 {[%clk 0:02:44]} 30. Rcd1 {[%clk 0:02:45]}  b5 {[%clk 0:02:07]} 31. Rd6 {[%clk 0:01:55]}  Bg4 {[%clk 0:02:03]} 32. R1d5 {[%clk 0:01:16]}  Bf3 {[%clk 0:00:53]} 33. Rd7+ {[%clk 0:01:09]}  Ke8 {[%clk 0:00:54]} 34. R5d6 {[%clk 0:01:00]}  c4 {[%clk 0:00:55]} 35. Ra7 {[%clk 0:00:37]}  c3 {[%clk 0:00:43]} 36. Rdd7 {[%clk 0:00:37]}  c2 {[%clk 0:00:44]} 37. Re7+ {[%clk 0:00:36]}  Kf8 {[%clk 0:00:46]} 38. Rxf7+ {[%clk 0:00:37]}  Kg8 {[%clk 0:00:41]} 39. Rg7+ {[%clk 0:00:37]}  Kh8 {[%clk 0:00:42]} 40. Rh7+ {[%clk 0:00:34]}  Kg8 {[%clk 0:00:43]} 41. Rag7+ {[%clk 0:00:30]}  Kf8 {[%clk 0:00:44]} 42. Rf7+ {[%clk 0:00:18]}  Kg8 {[%clk 0:00:40]} 43. Rhg7+ {[%clk 0:00:10]}  Kh8 {[%clk 0:00:40]} 44. Rh7+ {[%clk 0:00:10]}  Kg8 {[%clk 0:00:42]} 45. Rhg7+ {[%clk 0:00:12]}  Kh8 {[%clk 0:00:43]} 46. Rh7+ {[%clk 0:00:14]}  Kg8 {[%clk 0:00:44]} 1/2-1/2


[Site "Internet"]

[Event "Chessable Masters - Torneo preliminare"]
[White "Le, Tuan Minh"]
[Black "Perez Ponsa, Federico"]
[WhiteFideId "12401153"]
[BlackFideId "117927"]
[WhiteElo "2489"]
[BlackElo "2586"]
[Result "1-0"]
[Round "4"]
[TimeControl "600+2"]
[Date "2023.03.13"]
[WhiteClock "0:00:14"]
[BlackClock "0:03:02"]

1. d4 {[%clk 0:09:53]}  Nf6 {[%clk 0:09:50]} 2. Nf3 {[%clk 0:09:47]}  g6 {[%clk 0:09:52]} 3. c4 {[%clk 0:09:42]}  Bg7 {[%clk 0:09:53]} 4. g3 {[%clk 0:09:43]}  O-O {[%clk 0:09:54]} 5. Bg2 {[%clk 0:09:45]}  d6 {[%clk 0:09:56]} 6. O-O {[%clk 0:09:46]}  Nc6 {[%clk 0:09:57]} 7. Nc3 {[%clk 0:09:44]}  e5 {[%clk 0:09:59]} 8. h3 {[%clk 0:09:46]}  exd4 {[%clk 0:09:59]} 9. Nxd4 {[%clk 0:09:46]}  Nxd4 {[%clk 0:10:00]} 10. Qxd4 {[%clk 0:09:47]}  Be6 {[%clk 0:10:02]} 11. Qd3 {[%clk 0:09:44]}  Nd7 {[%clk 0:10:02]} 12. b3 {[%clk 0:08:22]}  Nc5 {[%clk 0:09:14]} 13. Qd2 {[%clk 0:08:22]}  Qd7 {[%clk 0:09:02]} 14. Kh2 {[%clk 0:08:03]}  f5 {[%clk 0:08:56]} 15. Bb2 {[%clk 0:07:50]}  f4 {[%clk 0:08:39]} 16. Nd5 {[%clk 0:05:58]}  fxg3+ {[%clk 0:08:14]} 17. fxg3 {[%clk 0:05:57]}  Bxd5 {[%clk 0:07:35]} 18. Qxd5+ {[%clk 0:05:46]}  Kh8 {[%clk 0:07:36]} 19. Bxg7+ {[%clk 0:05:46]}  Qxg7 {[%clk 0:07:36]} 20. b4 {[%clk 0:05:47]}  c6 {[%clk 0:07:16]} 21. Qxd6 {[%clk 0:05:40]}  Na4 {[%clk 0:07:01]} 22. Rxf8+ {[%clk 0:05:39]}  Rxf8 {[%clk 0:07:00]} 23. Rf1 {[%clk 0:05:37]}  Re8 {[%clk 0:06:57]} 24. e4 {[%clk 0:05:16]}  Nc3 {[%clk 0:06:42]} 25. a3 {[%clk 0:04:38]}  h5 {[%clk 0:06:20]} 26. Rf4 {[%clk 0:02:19]}  Kh7 {[%clk 0:05:58]} 27. h4 {[%clk 0:02:19]}  Re7 {[%clk 0:05:51]} 28. Bf3 {[%clk 0:01:56]}  Rd7 {[%clk 0:05:42]} 29. Qb8 {[%clk 0:01:47]}  Rd2+ {[%clk 0:05:27]} 30. Bg2 {[%clk 0:01:27]}  Nd1 {[%clk 0:04:55]} 31. Qe8 {[%clk 0:01:20]}  Rd7 {[%clk 0:04:27]} 32. Rf3 {[%clk 0:00:23]}  Re7 {[%clk 0:04:09]} 33. Qd8 {[%clk 0:00:24]}  Rd7 {[%clk 0:04:04]} 34. Qg5 {[%clk 0:00:25]}  Nc3 {[%clk 0:03:52]} 35. e5 {[%clk 0:00:12]}  Ne4 {[%clk 0:03:45]} 36. Qe3 {[%clk 0:00:12]}  Nd2 {[%clk 0:03:36]} 37. Rf4 {[%clk 0:00:14]}  Qe7 {[%clk 0:03:00]} 38. e6 {[%clk 0:00:13]}  Rd6 {[%clk 0:03:02]} 39. Rf7+ {[%clk 0:00:14]} 1-0


[Site "Internet"]

[Event "Chessable Masters - Torneo preliminare"]
[White "Smirnov, Pavel"]
[Black "Aditya, Mittal"]
[WhiteFideId "4123425"]
[BlackFideId "35042025"]
[WhiteElo "2470"]
[BlackElo "2386"]
[Result "1/2-1/2"]
[Round "4"]
[TimeControl "600+2"]
[Date "2023.03.13"]
[WhiteClock "0:02:45"]
[BlackClock "0:01:12"]

1. d4 {[%clk 0:09:56]}  Nf6 {[%clk 0:10:00]} 2. c4 {[%clk 0:09:56]}  e6 {[%clk 0:10:02]} 3. g3 {[%clk 0:09:56]}  d5 {[%clk 0:10:03]} 4. Nf3 {[%clk 0:09:55]}  dxc4 {[%clk 0:10:04]} 5. Bg2 {[%clk 0:09:56]}  Nc6 {[%clk 0:10:06]} 6. Qa4 {[%clk 0:09:55]}  Bb4+ {[%clk 0:10:07]} 7. Bd2 {[%clk 0:09:56]}  Nd5 {[%clk 0:10:09]} 8. Bxb4 {[%clk 0:09:54]}  Nxb4 {[%clk 0:10:09]} 9. O-O {[%clk 0:09:54]}  Rb8 {[%clk 0:09:51]} 10. Na3 {[%clk 0:09:52]}  O-O {[%clk 0:09:47]} 11. Qb5 {[%clk 0:09:50]}  b6 {[%clk 0:09:42]} 12. Qxc4 {[%clk 0:09:50]}  Ba6 {[%clk 0:09:44]} 13. Nb5 {[%clk 0:09:51]}  Qd5 {[%clk 0:09:46]} 14. Qxd5 {[%clk 0:09:50]}  Nxd5 {[%clk 0:09:47]} 15. a4 {[%clk 0:09:49]}  Bb7 {[%clk 0:09:49]} 16. Rac1 {[%clk 0:08:39]}  a6 {[%clk 0:09:48]} 17. Nc3 {[%clk 0:08:37]}  Ndb4 {[%clk 0:09:44]} 18. Rfd1 {[%clk 0:08:33]}  Rfd8 {[%clk 0:09:40]} 19. e4 {[%clk 0:08:32]}  Na5 {[%clk 0:09:28]} 20. b3 {[%clk 0:07:53]}  c5 {[%clk 0:09:04]} 21. dxc5 {[%clk 0:07:45]}  bxc5 {[%clk 0:09:03]} 22. Rb1 {[%clk 0:07:03]}  Rxd1+ {[%clk 0:08:52]} 23. Rxd1 {[%clk 0:07:02]}  Nxb3 {[%clk 0:08:53]} 24. Ne5 {[%clk 0:07:03]}  f6 {[%clk 0:08:31]} 25. Bh3 {[%clk 0:06:16]}  Nd4 {[%clk 0:07:49]} 26. Nd7 {[%clk 0:06:17]}  Rc8 {[%clk 0:07:37]} 27. Nxc5 {[%clk 0:06:13]}  Nf3+ {[%clk 0:06:44]} 28. Kg2 {[%clk 0:06:14]}  Rxc5 {[%clk 0:06:46]} 29. Rd8+ {[%clk 0:06:05]}  Kf7 {[%clk 0:06:47]} 30. Rd7+ {[%clk 0:06:06]}  Kg6 {[%clk 0:06:33]} 31. Rxb7 {[%clk 0:06:07]}  Rxc3 {[%clk 0:06:31]} 32. Rxb4 {[%clk 0:06:06]}  Ne1+ {[%clk 0:05:39]} 33. Kf1 {[%clk 0:06:07]}  Nd3 {[%clk 0:05:41]} 34. Rd4 {[%clk 0:05:38]}  Nc5 {[%clk 0:05:19]} 35. f4 {[%clk 0:05:31]}  Kf7 {[%clk 0:04:16]} 36. Rd6 {[%clk 0:05:11]}  e5 {[%clk 0:03:18]} 37. fxe5 {[%clk 0:04:49]}  fxe5 {[%clk 0:03:20]} 38. Rc6 {[%clk 0:04:30]}  a5 {[%clk 0:03:11]} 39. Rc7+ {[%clk 0:04:05]}  Kf6 {[%clk 0:03:12]} 40. Ra7 {[%clk 0:04:01]}  Rc1+ {[%clk 0:02:59]} 41. Kg2 {[%clk 0:03:55]}  Nxe4 {[%clk 0:02:38]} 42. Ra6+ {[%clk 0:03:52]}  Kg5 {[%clk 0:02:21]} 43. Rxa5 {[%clk 0:03:52]}  Rc2+ {[%clk 0:02:22]} 44. Kf3 {[%clk 0:03:13]}  Nc5 {[%clk 0:01:49]} 45. Bf1 {[%clk 0:03:12]}  Rc3+ {[%clk 0:01:40]} 46. Ke2 {[%clk 0:03:08]}  Kf5 {[%clk 0:01:32]} 47. Kd2 {[%clk 0:02:53]}  Ne4+ {[%clk 0:01:32]} 48. Kd1 {[%clk 0:02:54]}  Nc5 {[%clk 0:01:13]} 49. Kd2 {[%clk 0:02:52]}  Ne4+ {[%clk 0:01:14]} 50. Kd1 {[%clk 0:02:53]}  Nc5 {[%clk 0:01:12]} 51. Kd2 {[%clk 0:02:45]} 1/2-1/2


[Site "Internet"]

[Event "Chessable Masters - Torneo preliminare"]
[White "Oparin, Grigoriy"]
[Black "Kosteniuk, Alexandra"]
[WhiteFideId "24125890"]
[BlackFideId "4128125"]
[WhiteElo "2650"]
[BlackElo "2524"]
[Result "1-0"]
[Round "4"]
[TimeControl "600+2"]
[Date "2023.03.13"]
[WhiteClock "0:00:28"]
[BlackClock "0:00:06"]

1. d4 {[%clk 0:10:01]}  Nf6 {[%clk 0:10:00]} 2. c4 {[%clk 0:10:03]}  e6 {[%clk 0:10:01]} 3. Nf3 {[%clk 0:10:04]}  d5 {[%clk 0:10:02]} 4. g3 {[%clk 0:10:05]}  dxc4 {[%clk 0:10:02]} 5. Bg2 {[%clk 0:10:06]}  Nc6 {[%clk 0:10:00]} 6. Qa4 {[%clk 0:10:05]}  Bb4+ {[%clk 0:10:00]} 7. Nc3 {[%clk 0:10:00]}  Bd7 {[%clk 0:08:55]} 8. Qc2 {[%clk 0:09:56]}  O-O {[%clk 0:08:39]} 9. O-O {[%clk 0:09:57]}  Rb8 {[%clk 0:08:25]} 10. Rd1 {[%clk 0:09:44]}  b5 {[%clk 0:07:49]} 11. e4 {[%clk 0:09:29]}  Be7 {[%clk 0:07:36]} 12. a3 {[%clk 0:09:11]}  Na5 {[%clk 0:06:26]} 13. Bf4 {[%clk 0:08:31]}  Nb3 {[%clk 0:06:16]} 14. Rab1 {[%clk 0:08:32]}  Qc8 {[%clk 0:06:00]} 15. Qe2 {[%clk 0:07:46]}  h6 {[%clk 0:05:19]} 16. d5 {[%clk 0:07:32]}  exd5 {[%clk 0:04:57]} 17. e5 {[%clk 0:07:33]}  Nh7 {[%clk 0:04:49]} 18. Nxd5 {[%clk 0:07:32]}  Bd8 {[%clk 0:04:14]} 19. Nd2 {[%clk 0:05:43]}  Bg4 {[%clk 0:03:54]} 20. f3 {[%clk 0:05:44]}  Nxd2 {[%clk 0:03:19]} 21. Rxd2 {[%clk 0:05:45]}  Bf5 {[%clk 0:03:17]} 22. Rbd1 {[%clk 0:05:38]}  Bd3 {[%clk 0:03:14]} 23. Qf2 {[%clk 0:05:30]}  a5 {[%clk 0:02:57]} 24. Bf1 {[%clk 0:05:18]}  Bg6 {[%clk 0:02:41]} 25. h4 {[%clk 0:05:01]}  c6 {[%clk 0:02:34]} 26. Nc3 {[%clk 0:05:02]}  Bb6 {[%clk 0:02:28]} 27. Be3 {[%clk 0:05:03]}  Bxe3 {[%clk 0:02:25]} 28. Qxe3 {[%clk 0:05:05]}  Re8 {[%clk 0:02:26]} 29. Rd6 {[%clk 0:04:20]}  Qf5 {[%clk 0:02:05]} 30. g4 {[%clk 0:03:49]}  Qc8 {[%clk 0:01:43]} 31. Qc5 {[%clk 0:03:31]}  Nf8 {[%clk 0:01:33]} 32. h5 {[%clk 0:03:04]}  Bc2 {[%clk 0:01:34]} 33. R1d2 {[%clk 0:03:04]}  Bh7 {[%clk 0:01:10]} 34. Rxc6 {[%clk 0:01:50]}  Qb7 {[%clk 0:01:11]} 35. Nd5 {[%clk 0:01:50]}  Ne6 {[%clk 0:01:09]} 36. Qb6 {[%clk 0:01:52]}  Qxb6+ {[%clk 0:00:14]} 37. Nxb6 {[%clk 0:01:53]}  Nf4 {[%clk 0:00:12]} 38. Nd7 {[%clk 0:01:45]}  Rbd8 {[%clk 0:00:11]} 39. Rd4 {[%clk 0:01:32]}  Ne6 {[%clk 0:00:08]} 40. Rdd6 {[%clk 0:01:27]}  Ng5 {[%clk 0:00:04]} 41. Kf2 {[%clk 0:01:25]}  Ne6 {[%clk 0:00:03]} 42. Rb6 {[%clk 0:01:24]}  Nf4 {[%clk 0:00:02]} 43. Kg3 {[%clk 0:01:13]}  Nd3 {[%clk 0:00:03]} 44. Bxd3 {[%clk 0:01:14]}  Bxd3 {[%clk 0:00:04]} 45. Rxb5 {[%clk 0:01:15]}  Kh8 {[%clk 0:00:04]} 46. Rxa5 {[%clk 0:01:12]}  Re7 {[%clk 0:00:05]} 47. Rad5 {[%clk 0:01:13]}  Rc8 {[%clk 0:00:06]} 48. Nb6 {[%clk 0:01:13]}  Rcc7 {[%clk 0:00:07]} 49. Kf4 {[%clk 0:01:07]}  Kh7 {[%clk 0:00:09]} 50. a4 {[%clk 0:01:07]}  Ra7 {[%clk 0:00:09]} 51. a5 {[%clk 0:01:09]}  Rec7 {[%clk 0:00:07]} 52. Ke3 {[%clk 0:00:54]}  Bf1 {[%clk 0:00:08]} 53. Kf2 {[%clk 0:00:39]}  Bd3 {[%clk 0:00:08]} 54. f4 {[%clk 0:00:29]}  Rcb7 {[%clk 0:00:04]} 55. Rc5 {[%clk 0:00:27]}  Rc7 {[%clk 0:00:04]} 56. Rxc7 {[%clk 0:00:28]}  Rxc7 {[%clk 0:00:05]} 57. Nd5 {[%clk 0:00:29]}  Rc5 {[%clk 0:00:06]} 58. a6 {[%clk 0:00:29]}  Ra5 {[%clk 0:00:08]} 59. Nc3 {[%clk 0:00:27]}  Ra1 {[%clk 0:00:07]} 60. Ke3 {[%clk 0:00:27]}  g6 {[%clk 0:00:07]} 61. hxg6+ {[%clk 0:00:27]}  Kg7 {[%clk 0:00:06]} 62. gxf7 {[%clk 0:00:28]} 1-0


[Site "Internet"]